bitfinex/quotes_ETHUSD_20250214
["timestamp","ask_amount","ask_price","bid_price","bid_amount"]
[1739522248741,0.8077,2715.7,2715.3,3.80905]
[1739522249887,0.8077,2715.7,2715.3,0.1263]
[1739522250123,0.8077,2715.7,2714.3,4.81757731]
[1739522250124,0.8077,2715.0,2714.5,3.68379]
[1739522250320,0.8077,2715.0,2714.6,3.68371]
[1739522250491,0.8077,2715.0,2714.8,3.6834]
[1739522251117,0.8077,2715.0,2714.7,3.68358]
[1739522251319,0.8077,2715.0,2714.4,4.55570772]
[1739522251526,4.49103,2715.0,2714.5,0.5481635]
[1739522252031,4.49103,2715.0,2714.4,7.49425]
[1739522252193,4.49103,2715.0,2714.4,3.81027]
[1739522252194,3.68339,2714.9,2714.4,3.81027]
[1739522252393,3.68339,2714.9,2714.3,3.68405]
[1739522252618,0.0075,2714.8,2714.3,3.68405]
[1739522252823,0.0075,2714.8,2714.2,3.68426]
[1739522253024,0.8077,2715.0,2714.3,3.68419]
[1739522253209,0.8077,2715.0,2714.5,3.6839]
[1739522254048,0.8077,2715.0,2714.6,3.68377]
[1739522254343,0.8077,2715.0,2714.5,3.6839]
[1739522254544,0.8077,2715.0,2714.7,0.08442738]
[1739522254740,0.8077,2715.0,2714.6,0.08451304]
[1739522254945,0.8077,2715.0,2714.8,0.08434172]
[1739522255147,0.8077,2715.0,2714.7,0.08442738]
[1739522255345,0.8077,2715.0,2714.9,0.08425607]
[1739522255698,0.8077,2715.0,2714.5,3.68384]
[1739522255913,0.8077,2715.0,2714.9,0.08449267]
[1739522256242,3.68338,2714.9,2714.4,3.81034]
[1739522256444,3.68372,2714.7,2714.2,3.68428]
[1739522256659,0.8294,2714.6,2714.5,0.00434425]
[1739522257552,2.44887311,2715.6,2714.5,0.00434425]
[1739522257723,0.8294,2715.3,2714.8,3.68345]
[1739522257927,0.8294,2715.3,2714.9,3.68329]
[1739522258133,0.8294,2715.3,2715.0,3.68315]
[1739522258718,0.8294,2715.3,2715.2,3.68296]
[1739522259016,0.8006,2715.5,2715.2,3.68296]
[1739522259318,0.8006,2715.5,2715.3,3.68271]
[1739522259645,0.8006,2715.7,2715.4,3.68261]
[1739522260849,0.8006,2715.7,2715.3,3.68277]
[1739522261271,0.8006,2715.7,2715.4,3.68266]
[1739522261891,0.8006,2715.7,2715.2,3.6829]
[1739522262191,0.0075,2715.6,2715.3,3.68283]
[1739522262346,0.0075,2715.6,2715.0,3.68316]
[1739522262546,0.0075,2715.6,2715.2,3.68296]
[1739522262746,0.0075,2715.6,2715.0,3.68315]
[1739522263147,0.8006,2715.5,2715.0,3.68315]
[1739522263485,0.0075,2715.4,2714.8,3.68346]
[1739522263686,0.0075,2715.4,2714.8,3.68341]
[1739522263981,0.0075,2715.4,2715.0,3.68316]
[1739522264204,0.8006,2716.2,2715.1,0.1263]
[1739522264483,0.8006,2716.2,2715.7,3.68219]
[1739522264688,0.0075,2716.1,2715.7,3.68219]
[1739522264869,0.0075,2716.1,2715.8,3.68215]
[1739522265447,0.0075,2716.1,2715.8,3.68213]
[1739522265848,0.0075,2716.1,2715.9,3.68198]
[1739522266154,0.0075,2716.1,2715.8,3.68213]
[1739522266465,0.8006,2716.2,2715.8,3.68213]
[1739522266466,0.8006,2716.2,2716.1,3.68174]
[1739522266649,0.8006,2716.4,2716.2,3.68157]
[1739522266850,0.8006,2716.4,2716.1,3.68173]
[1739522267276,0.8006,2716.4,2716.0,7.36359]
[1739522267475,0.8006,2716.4,2716.0,3.68179]
[1739522268322,0.8006,2716.4,2715.9,3.68201]
[1739522268492,4.48196,2716.4,2715.8,0.749082]
[1739522268826,0.8006,2716.4,2715.9,3.68199]
[1739522269028,0.8006,2716.4,2715.8,3.68212]
[1739522269191,4.48194,2716.4,2715.8,3.68212]
[1739522269391,4.48194,2716.4,2715.9,0.00434425]
[1739522269611,0.8006,2716.4,2715.9,3.76907036]
[1739522270205,0.8006,2716.4,2715.9,3.76908036]
[1739522271428,3.68905,2716.3,2715.9,0.08709036]
[1739522271793,3.68905,2716.3,2715.9,3.76903036]
[1739522271794,0.0075,2716.3,2715.9,3.76903036]
[1739522272825,3.68128,2716.5,2715.9,3.76902036]
[1739522273130,0.0075,2716.3,2715.9,3.76902036]
[1739522273505,0.0075,2716.3,2715.9,0.08709036]
[1739522273830,0.7856,2716.1,2715.9,0.08709036]
[1739522274492,0.0075,2716.0,2715.9,0.08709036]
[1739522274898,4.505052,2716.0,2715.9,0.08709036]
[1739522275232,5.290652,2716.0,2715.9,0.08709036]
[1739522276393,5.290652,2716.0,2715.9,0.00434425]
[1739522281140,5.848152,2716.0,2715.9,0.00434425]
[1739522281308,0.7856,2715.1,2714.7,5.25]
[1739522281635,0.7856,2715.1,2714.6,3.68369]
[1739522281837,0.7856,2715.1,2714.8,0.08379924]
[1739522282009,0.7856,2715.1,2714.8,3.68346]
[1739522282212,0.7856,2715.1,2714.9,0.08418187]
[1739522283010,0.7856,2715.1,2714.6,3.68368]
[1739522283529,3.69082,2715.0,2714.7,0.08435318]
[1739522283726,0.0075,2714.8,2714.3,3.6841]
[1739522283950,0.0075,2714.8,2714.4,3.68397]
[1739522284460,0.0075,2714.9,2714.5,3.76856832]
[1739522285662,0.0075,2714.9,2714.5,0.08466832]
[1739522285835,3.69089,2714.9,2714.5,0.08466832]
[1739522286451,0.0075,2714.9,2714.5,3.76844832]
[1739522286650,0.0075,2714.9,2714.6,3.68378]
[1739522286854,0.0075,2714.9,2714.5,3.76844832]
[1739522287156,4.46878,2715.1,2714.6,3.76834265]
[1739522287358,0.7856,2715.1,2714.7,3.68357]
[1739522287560,0.0075,2715.0,2714.8,3.68338]
[1739522287762,0.7569,2715.3,2714.9,3.68335]
[1739522287922,0.7569,2715.3,2714.9,3.76767567]
[1739522288128,0.7569,2715.3,2715.0,3.68322]
[1739522288322,0.7569,2715.3,2715.0,3.76750178]
[1739522288764,0.7569,2715.3,2715.0,0.08428178]
[1739522288939,0.7569,2715.3,2714.8,3.68341]
[1739522289141,4.43974,2715.3,2715.1,0.08419614]
[1739522289352,4.43974,2715.3,2714.8,3.68341]
[1739522289530,4.44724,2715.3,2715.2,0.08411051]
[1739522289731,4.44724,2715.3,2714.8,3.68341]
[1739522289931,4.44724,2715.3,2715.2,0.08411051]
[1739522290159,4.44724,2715.3,2714.8,3.68341]
[1739522290362,0.0075,2715.2,2714.6,3.81431]
[1739522290570,0.0075,2715.0,2714.6,3.68371]
[1739522290771,0.0075,2714.8,2714.4,7.36793]
[1739522291070,0.0075,2714.8,2714.4,3.68396]
[1739522291943,0.0075,2714.8,2714.5,3.68389]
[1739522292144,0.7731,2715.1,2714.6,3.68368]
[1739522292353,4.45627,2715.1,2714.6,3.68368]
[1739522292551,0.0075,2715.0,2714.7,3.68359]
[1739522292754,0.7731,2715.1,2714.4,2.44721941]
[1739522292963,0.7731,2715.1,2714.6,3.6837]
[1739522293145,0.0075,2715.0,2714.6,3.6837]
[1739522293874,0.0075,2715.0,2714.7,3.6836]
[1739522294231,0.0075,2715.0,2714.3,5.25]
[1739522294475,0.0075,2715.0,2714.8,3.68341]
[1739522294775,0.0075,2715.0,2714.7,3.68358]
[1739522294936,0.0075,2715.0,2714.5,3.68379]
[1739522295135,3.69077,2715.0,2714.5,3.68379]
[1739522295336,0.0075,2714.8,2714.4,3.68402]
[1739522295847,0.8275,2714.7,2714.3,8.93415]
[1739522296043,0.8275,2714.7,2714.4,3.68403]
[1739522296244,0.8275,2714.7,2714.5,3.68384]
[1739522297349,0.8275,2714.7,2714.3,5.25]
[1739522297551,0.8275,2714.7,2714.4,3.68398]
[1739522298539,0.8275,2714.7,2714.5,3.68391]
[1739522298770,0.8275,2714.7,2714.4,3.68397]
[1739522299076,0.8275,2714.7,2714.5,3.68388]
[1739522299272,0.8275,2714.7,2714.6,3.68378]
[1739522299451,0.0075,2714.8,2714.6,3.76569979]
[1739522299837,0.8133,2715.3,2714.6,0.08191979]
[1739522300038,0.8133,2715.3,2715.0,3.68323]
[1739522300246,0.8133,2715.3,2714.9,3.68333]
[1739522300446,4.50376,2715.2,2715.1,0.08149153]
[1739522300647,0.0075,2715.1,2715.0,0.08157717]
[1739522300837,4.134246,2715.1,2714.6,3.68377]
[1739522301033,4.49626,2715.2,2714.6,3.68377]
[1739522301034,0.0075,2715.0,2714.6,7.36754]
[1739522301292,0.0075,2715.0,2714.6,3.68377]
[1739522301442,0.0075,2715.1,2714.5,0.1306]
[1739522301645,0.0075,2715.1,2714.6,3.6837]
[1739522301863,0.0075,2715.1,2714.6,7.3674]
[1739522302061,0.0075,2715.1,2714.6,3.6837]
[1739522302461,3.69065,2715.1,2714.6,3.6837]
[1739522303900,3.68324,2715.0,2714.4,7.3679]
[1739522304049,3.68324,2715.0,2714.4,3.68393]
[1739522304558,0.7528,2714.8,2714.3,3.68405]
[1739522304753,0.7528,2714.8,2714.2,3.81483]
[1739522304985,4.43631,2714.8,2714.3,3.68412]
[1739522305648,4.43631,2714.8,2714.3,3.68411]
[1739522306886,4.43631,2714.8,2714.1,4.41714309]
[1739522306887,0.0075,2714.5,2714.1,3.68436]
[1739522307182,0.0075,2714.5,2713.9,3.68466]
[1739522307183,0.7528,2714.4,2713.9,3.68466]
[1739522307344,0.7528,2714.4,2713.9,7.36931]
[1739522307544,0.7528,2714.4,2713.8,0.1306]
[1739522307906,0.7528,2714.4,2713.7,6.13212941]
[1739522307907,0.0075,2714.3,2713.7,6.13212941]
[1739522308203,0.0075,2714.3,2713.8,3.6848]
[1739522310578,0.0075,2714.3,2713.7,3.68491]
[1739522310579,0.0075,2714.1,2713.7,3.68491]
[1739522312052,0.0075,2714.1,2713.7,7.36984]
[1739522312277,0.0075,2714.1,2713.8,3.68482]
[1739522312478,0.0075,2714.1,2713.9,3.68469]
[1739522313389,8.12106,2714.4,2713.9,3.68465]
[1739522313390,0.0075,2714.3,2713.9,3.68465]
[1739522313591,0.7528,2714.4,2714.0,3.68452]
[1739522313795,0.7528,2714.4,2714.1,3.6844]
[1739522314352,0.7528,2714.4,2714.2,0.08246205]
[1739522314761,0.7528,2714.4,2714.0,3.68455]
[1739522314965,0.7528,2714.4,2714.3,0.08237636]
[1739522315191,0.7528,2714.4,2714.2,3.68425]
[1739522315374,0.7934,2714.7,2714.3,3.76651636]
[1739522316296,0.7859,2715.1,2714.6,3.68377]
[1739522316816,0.0075,2715.0,2714.7,0.08203366]
[1739522317539,3.69074,2715.0,2714.7,0.08203366]
[1739522317835,4.506722,2715.0,2714.5,3.68391]
[1739522317978,3.69074,2715.0,2714.8,0.081948]
[1739522318319,3.69074,2715.0,2714.5,3.68391]
[1739522318492,3.69074,2715.0,2714.4,7.36789]
[1739522318688,3.69074,2715.0,2714.4,3.68394]
[1739522318907,3.69074,2715.0,2714.5,0.082205]
[1739522319383,3.69074,2715.0,2714.5,3.766045]
[1739522319919,0.0075,2715.0,2714.6,3.68376]
[1739522320079,0.0075,2715.0,2714.6,3.6837]
[1739522320278,0.0075,2715.0,2714.7,0.08203366]
[1739522320923,0.0075,2715.0,2714.7,3.76566366]
[1739522321079,3.69074,2715.0,2714.7,0.08203366]
[1739522321276,0.447664,2714.9,2714.4,3.68395]
[1739522321580,3.69074,2715.0,2714.5,0.082205]
[1739522322594,3.69074,2715.0,2714.5,3.766075]
[1739522323021,0.7867,2714.8,2714.5,0.082205]
[1739522323188,0.7867,2714.8,2714.3,3.68406]
[1739522323389,0.7867,2714.8,2714.6,0.08206826]
[1739522323623,4.130656,2714.7,2714.3,3.68406]
[1739522323801,4.47771,2714.8,2714.7,0.08198259]
[1739522324006,3.69119,2714.7,2714.2,3.68426]
[1739522324584,0.0075,2714.7,2714.2,3.68426]
[1739522324992,0.0075,2714.7,2714.2,7.36848]
[1739522325191,0.0075,2714.7,2714.3,3.68417]
[1739522326731,0.0075,2714.7,2714.4,3.68397]
[1739522328512,0.0075,2714.7,2714.1,3.68436]
[1739522328718,0.5575,2714.7,2714.1,3.68436]
[1739522329025,3.68385,2714.6,2714.1,7.36875]
[1739522329226,3.68385,2714.6,2714.1,3.68436]
[1739522329437,3.68385,2714.6,2714.2,0.08241098]
[1739522329629,4.24151,2714.5,2714.2,0.08241098]
[1739522329833,0.8094,2714.4,2714.0,3.68459]
[1739522330066,0.8094,2714.4,2714.3,0.08232529]
[1739522330207,0.8094,2714.4,2714.0,3.68459]
[1739522330406,0.8094,2714.4,2714.3,0.08232529]
[1739522330639,0.8094,2714.4,2714.1,3.68444]
[1739522330846,0.8094,2714.4,2714.3,0.08232529]
[1739522331353,0.8094,2714.4,2714.0,3.68458]
[1739522331647,0.8094,2714.4,2714.3,0.08232529]
[1739522331812,0.8094,2714.4,2714.1,3.68445]
[1739522332029,0.8094,2714.4,2714.3,0.08232529]
[1739522332218,0.8094,2714.4,2714.2,3.68429]
[1739522332219,0.8094,2714.4,2714.2,0.08241098]
[1739522332563,0.8094,2714.4,2714.3,0.08232529]
[1739522332716,0.8094,2714.4,2714.1,3.68445]
[1739522332913,0.8094,2714.4,2714.2,0.0825038]
[1739522335365,0.8094,2714.4,2714.1,3.68443]
[1739522335523,0.8094,2714.4,2714.3,0.08241811]
[1739522335724,0.8094,2714.4,2714.1,3.68443]
[1739522335924,0.8094,2714.4,2714.2,0.0825038]
[1739522337261,0.8094,2714.4,2714.2,3.7668138]
[1739522337556,0.8094,2714.4,2714.2,0.0825038]
[1739522337735,0.8094,2714.4,2714.0,7.36903]
[1739522337935,0.8094,2714.4,2714.1,0.08258949]
[1739522338123,4.49349,2714.4,2714.1,0.08258949]
[1739522338453,0.8094,2714.4,2714.0,3.68457]
[1739522338659,0.8094,2714.4,2714.2,0.0825038]
[1739522338860,0.8094,2714.4,2714.1,0.08258949]
[1739522339064,0.8094,2714.4,2714.3,0.08241811]
[1739522339564,0.8094,2714.4,2714.1,3.68446]
[1739522339765,0.8094,2714.4,2714.3,0.08241811]
[1739522339965,0.8094,2714.4,2714.0,3.68451]
[1739522340162,0.8094,2714.4,2714.3,0.08241811]
[1739522340365,0.8094,2714.4,2713.9,8.85962039]
[1739522340668,0.0075,2714.5,2714.3,0.08241811]
[1739522340866,3.68405,2714.4,2713.9,5.17505039]
[1739522341042,7.37553,2714.5,2714.0,3.68458]
[1739522341243,3.69151,2714.5,2714.0,3.68458]
[1739522341437,0.0075,2714.3,2713.9,1.49038039]
[1739522341767,4.44021,2714.2,2713.9,1.49038039]
[1739522342178,5.308395,2714.2,2713.9,1.49038039]
[1739522343280,4.44021,2714.2,2713.9,1.49038039]
[1739522343580,0.7558,2714.2,2713.9,1.49038039]
[1739522344166,0.0075,2714.1,2713.9,1.49038039]
[1739522344368,0.0075,2714.1,2714.0,0.08268448]
[1739522344752,0.7558,2714.2,2714.0,0.08268448]
[1739522344957,0.7558,2714.5,2714.0,0.08268448]
[1739522345141,4.43979,2714.5,2714.0,0.08268448]
[1739522345481,0.0075,2714.4,2714.0,0.08268448]
[1739522345679,0.0075,2714.4,2714.0,3.76726448]
[1739522345879,0.0075,2714.4,2714.0,0.08268448]
[1739522346442,3.68421,2714.3,2714.0,0.08268448]
[1739522346673,0.0075,2714.4,2714.0,0.08268448]
[1739522347264,3.69161,2714.4,2714.0,0.08268448]
[1739522347664,0.0075,2714.4,2714.0,0.08268448]
[1739522349282,3.69157,2714.4,2714.0,0.08268448]
[1739522349494,0.0075,2714.4,2714.0,0.08268448]
[1739522349689,3.68419,2714.3,2714.0,0.08268448]
[1739522350054,0.0075,2714.4,2714.0,0.08268448]
[1739522350451,3.69165,2714.4,2714.0,0.08268448]
[1739522350658,3.68421,2714.3,2714.0,0.08268448]
[1739522350963,0.0075,2714.4,2714.0,0.08268448]
[1739522351772,3.68422,2714.3,2714.0,0.08268448]
[1739522352175,3.69157,2714.4,2714.0,0.08268448]
[1739522353415,4.136307,2714.4,2714.0,0.08268448]
[1739522354367,0.0075,2714.4,2714.0,3.76717448]
[1739522355514,3.69156,2714.4,2714.0,0.08268448]
[1739522356359,3.69156,2714.4,2714.0,3.76725448]
[1739522356555,0.0075,2714.4,2714.0,3.76725448]
[1739522356839,0.7558,2714.5,2714.2,3.68432]
[1739522357202,0.7558,2714.5,2714.3,0.08242739]
[1739522357444,0.7558,2714.5,2714.1,3.68445]
[1739522357761,4.44721,2714.5,2714.4,0.08234171]
[1739522357896,4.44721,2714.5,2713.9,1.49038039]
[1739522357897,0.0075,2714.2,2713.9,1.49038039]
[1739522359406,3.68419,2714.3,2714.0,0.08273553]
[1739522359942,0.5575,2714.4,2714.0,0.08273553]
[1739522360114,4.24156,2714.4,2714.0,0.08273553]
[1739522360318,3.68426,2714.3,2714.0,0.08273553]
[1739522361024,3.68432,2714.2,2714.0,0.08273553]
[1739522361224,0.8148,2714.1,2714.0,0.08273553]
[1739522361411,4.49926,2714.1,2714.0,0.08273553]
[1739522361749,4.50676,2714.1,2714.0,0.08273553]
[1739522363326,5.05676,2714.1,2714.0,0.08273553]
[1739522365714,5.05676,2714.1,2713.9,1.49038039]
[1739522365919,5.4602588,2714.0,2713.9,1.49038039]
[1739522367843,1.7756688,2714.0,2713.9,1.49038039]
[1739522368013,0.0075,2714.0,2713.9,1.5734755]
[1739522368963,0.8148,2714.2,2713.9,1.5734755]
[1739522369256,0.5575,2714.2,2713.9,1.5734755]
[1739522369414,0.5575,2714.2,2713.9,5.2581855]
[1739522369611,3.68398,2714.5,2714.1,0.1306]
[1739522369814,4.69129043,2714.5,2714.1,0.1306]
[1739522370014,3.69155,2714.4,2714.2,0.08305615]
[1739522370249,3.68423,2714.3,2713.9,1.62098039]
[1739522370434,0.7601,2714.2,2713.9,1.49038039]
[1739522370758,4.44448,2714.2,2713.9,1.49038039]
[1739522370954,0.7601,2714.2,2713.9,1.49038039]
[1739522371337,3.68423,2714.3,2713.9,1.49038039]
[1739522372416,4.45168,2714.4,2713.9,5.17503039]
[1739522372613,3.69158,2714.4,2714.0,0.1306]
[1739522373158,0.0075,2714.4,2714.0,3.81512]
[1739522373364,0.0075,2714.4,2714.1,3.68438]
[1739522373927,0.0075,2714.4,2714.0,4.71415104]
[1739522374571,0.0075,2714.4,2714.1,0.08314184]
[1739522375668,1.3527,2714.2,2714.1,0.08314184]
[1739522375878,0.0075,2714.1,2713.9,1.49038039]
[1739522376328,0.7952,2714.4,2713.9,5.17509039]
[1739522376525,3.68422,2714.3,2713.9,1.49038039]
[1739522377565,0.5575,2714.2,2713.9,1.49038039]
[1739522377891,0.0075,2714.2,2713.9,1.49038039]
[1739522378030,0.7952,2714.4,2713.9,5.17501039]
[1739522378365,0.0075,2714.3,2713.9,5.17501039]
[1739522380540,3.69169,2714.3,2713.9,1.49038039]
[1739522381038,3.69169,2714.3,2713.9,5.17511039]
[1739522381227,0.0075,2714.3,2713.9,5.17511039]
[1739522382839,0.0075,2714.3,2713.9,1.49038039]
[1739522382840,0.0075,2714.1,2713.9,1.49038039]
[1739522383046,4.47979,2714.0,2713.9,1.49038039]
[1739522383245,0.7952,2714.0,2713.9,1.49038039]
[1739522384231,5.03671,2714.2,2713.9,1.49038039]
[1739522384636,3.68447,2714.1,2713.9,1.49038039]
[1739522384979,1.3523,2714.2,2713.9,1.49038039]
[1739522385274,1.3523,2714.2,2713.8,3.68474]
[1739522385470,5.03662,2714.2,2713.8,3.68474]
[1739522385780,5.03662,2714.2,2713.6,3.68501]
[1739522385969,3.68467,2714.0,2713.5,3.81586]
[1739522386174,3.68396,2714.5,2713.4,4.40706486]
[1739522386175,3.69253,2713.7,2713.4,0.72178486]
[1739522386378,3.68514,2713.6,2713.4,0.72178486]
[1739522386551,3.68527,2713.5,2713.0,3.81646]
[1739522386751,3.68527,2713.5,2713.0,7.50234]
[1739522386959,3.68527,2713.5,2713.0,3.81646]
[1739522387159,0.0075,2713.4,2713.0,3.68586]
[1739522387374,0.8023,2713.4,2712.8,4.5436537]
[1739522387671,0.8023,2713.4,2712.8,3.81677]
[1739522387976,3.68557,2713.3,2712.8,3.81674]
[1739522388641,3.68557,2713.3,2712.6,4.43115853]
[1739522388642,4.142047,2713.2,2712.6,4.56174853]
[1739522388865,3.68557,2713.3,2712.6,0.1306]
[1739522388866,0.55,2713.3,2712.6,0.1306]
[1739522389041,0.55,2713.3,2712.6,7.50344]
[1739522389248,3.6857,2713.2,2712.6,7.5034]
[1739522389452,3.6857,2713.2,2712.7,0.08130171]
[1739522389915,0.55,2713.3,2712.8,3.68621]
[1739522390236,0.55,2713.3,2712.9,0.08113015]
[1739522390660,3.68577,2713.2,2712.9,0.08113015]
[1739522390858,3.68577,2713.2,2712.6,3.81698]
[1739522391075,3.68577,2713.2,2713.0,0.08104438]
[1739522391275,0.0075,2713.2,2712.8,3.68621]
[1739522391471,0.0075,2713.2,2713.1,0.08137554]
[1739522391674,0.0075,2713.2,2712.8,3.68621]
[1739522391853,0.0075,2713.2,2713.1,0.08137554]
[1739522392087,3.69318,2713.2,2712.6,7.50339]
[1739522392415,0.0075,2713.2,2712.8,3.68614]
[1739522392781,0.0075,2713.2,2712.9,0.08154708]
[1739522394296,0.0075,2713.2,2712.8,3.68612]
[1739522394495,0.0075,2713.2,2713.0,0.08146131]
[1739522394808,0.0075,2713.2,2713.1,0.08137554]
[1739522394969,0.0075,2713.2,2712.8,3.68612]
[1739522395170,0.0075,2713.2,2712.9,0.08154708]
[1739522396607,5.32,2713.6,2713.0,0.1306]
[1739522396768,5.32,2713.6,2713.2,3.68559]
[1739522396969,5.32,2713.6,2713.3,0.08120403]
[1739522397169,5.32,2713.6,2713.2,3.68559]
[1739522397374,5.32,2713.6,2713.3,0.08120403]
[1739522397608,5.32,2713.6,2713.2,3.68559]
[1739522397909,5.32,2713.6,2713.4,0.08111828]
[1739522398111,0.7907,2713.7,2713.3,0.08120403]
[1739522398337,0.7907,2713.7,2713.5,0.08103254]
[1739522398607,0.7907,2713.7,2713.6,0.08094681]
[1739522398809,0.7982,2713.7,2713.2,3.68559]
[1739522398970,0.7982,2713.7,2713.6,0.08094681]
[1739522399180,4.949528,2713.7,2713.1,3.68579]
[1739522399510,4.949528,2713.7,2713.2,3.76693978]
[1739522400113,3.68523,2713.6,2713.2,0.08128978]
[1739522400319,4.949528,2713.7,2713.2,3.76695978]
[1739522400692,0.7907,2713.7,2713.2,0.08128978]
[1739522401021,0.7953,2713.9,2713.5,3.68518]
[1739522401212,0.0075,2713.8,2713.5,3.68518]
[1739522401528,0.0075,2713.8,2713.6,0.08091438]
[1739522401735,9.00442,2714.2,2713.6,0.08091438]
[1739522401960,9.00442,2714.2,2713.7,3.68493]
[1739522401961,0.7953,2714.2,2713.7,3.68493]
[1739522402137,0.7953,2714.2,2713.8,3.68478]
[1739522402295,0.7953,2714.2,2713.8,3.76552293]
[1739522402596,3.68454,2714.1,2713.8,0.08074293]
[1739522402793,3.68454,2714.1,2713.5,7.37037]
[1739522403033,3.68454,2714.1,2713.6,4.51613138]
[1739522403234,4.47969,2714.2,2713.6,4.51613138]
[1739522403566,4.47969,2714.2,2713.7,3.68498]
[1739522403717,0.7953,2714.2,2713.7,7.36991]
[1739522403893,0.7953,2714.2,2713.8,0.08074293]
[1739522404093,0.7953,2714.2,2713.7,3.68493]
[1739522404295,0.7953,2714.2,2713.9,0.08065722]
[1739522404551,0.7953,2714.2,2713.7,3.68493]
[1739522404742,0.7953,2714.2,2714.0,0.08057151]
[1739522404917,0.7953,2714.2,2713.7,3.68492]
[1739522405115,0.8028,2714.2,2714.1,0.08048581]
[1739522405309,0.8028,2714.2,2713.7,3.68492]
[1739522405511,4.48712,2714.2,2714.1,0.08048581]
[1739522405735,4.48712,2714.2,2713.7,3.68492]
[1739522405925,4.48712,2714.2,2714.1,0.08048581]
[1739522406232,5.304245,2714.2,2714.1,0.08048581]
[1739522406434,5.304245,2714.2,2713.7,3.68492]
[1739522406600,0.8028,2714.2,2714.1,0.08048581]
[1739522406802,0.8028,2714.2,2713.8,3.68486]
[1739522407002,0.8028,2714.2,2713.9,0.08065722]
[1739522407229,0.7829,2714.5,2714.0,3.68458]
[1739522407403,3.68406,2714.4,2714.0,0.08057151]
[1739522407926,0.0075,2714.4,2714.0,0.08057151]
[1739522408455,0.0075,2714.4,2714.0,3.76516151]
[1739522408942,3.69155,2714.4,2714.0,0.08057151]
[1739522409305,3.69155,2714.4,2713.9,3.68469]
[1739522409500,3.69155,2714.4,2714.1,0.08066645]
[1739522409718,0.0075,2714.4,2713.8,3.81544]
[1739522409924,0.0075,2714.4,2714.2,0.08058075]
[1739522410129,0.0075,2714.4,2713.9,3.68473]
[1739522410302,3.69155,2714.4,2714.3,0.08049506]
[1739522410502,3.69155,2714.4,2713.9,3.68473]
[1739522410702,0.0075,2714.4,2714.3,0.08049506]
[1739522411358,3.69162,2714.4,2713.8,7.50022]
[1739522411534,3.69162,2714.4,2714.3,0.08049506]
[1739522411730,3.69162,2714.4,2713.8,8.250242]
[1739522411731,3.6842,2714.3,2713.8,3.81537]
[1739522411931,3.68419,2714.3,2713.8,3.81545]
[1739522412143,3.68419,2714.3,2713.8,3.81546]
[1739522412757,3.68419,2714.3,2713.9,3.68473]
[1739522413152,3.69155,2714.4,2713.9,3.68473]
[1739522414337,3.68429,2714.3,2713.8,0.1306]
[1739522414637,3.68429,2714.3,2713.8,3.81545]
[1739522414864,3.68446,2714.1,2713.8,0.1306]
[1739522415021,3.68446,2714.1,2713.7,3.68492]
[1739522416059,0.0075,2714.2,2713.7,3.6849]
[1739522416226,0.0075,2714.2,2713.8,3.68483]
[1739522416969,0.0075,2714.3,2713.9,3.68464]
[1739522417869,3.69171,2714.3,2713.9,3.68464]
[1739522418166,3.69171,2714.3,2713.8,3.68486]
[1739522418468,4.46692,2714.5,2714.0,3.81506]
[1739522419605,0.0075,2714.4,2714.1,3.76477679]
[1739522419790,4.62264936,2714.7,2714.2,3.68426]
[1739522419964,3.68379,2714.6,2714.1,3.76479679]
[1739522420165,0.0075,2714.5,2714.3,0.0801754]
[1739522420368,3.68405,2714.4,2714.2,0.08026109]
[1739522420568,3.68405,2714.4,2714.0,0.1306]
[1739522420803,0.0075,2714.5,2714.0,0.1306]
[1739522421104,3.69142,2714.5,2714.0,3.81518]
[1739522421470,3.69142,2714.5,2714.0,7.4997]
[1739522421669,3.69142,2714.5,2714.0,3.81512]
[1739522422793,3.68406,2714.4,2714.0,3.81512]
[1739522423423,3.69144,2714.5,2714.0,3.81512]
[1739522423711,0.0075,2714.5,2714.1,3.6844]
[1739522424305,3.69142,2714.5,2714.1,3.6844]
[1739522424509,4.57783094,2714.5,2713.9,3.68466]
[1739522424710,3.68405,2714.4,2713.9,3.68466]
[1739522424888,4.57783094,2714.5,2713.8,4.54769182]
[1739522425219,3.69142,2714.5,2713.8,4.54778182]
[1739522425414,7.37545,2714.5,2713.9,3.6846]
[1739522426518,3.69142,2714.5,2714.0,7.36904]
[1739522427019,3.69142,2714.5,2714.0,3.68452]
[1739522427624,3.69142,2714.5,2714.0,3.6845]
[1739522428115,7.37545,2714.5,2714.0,3.6845]
[1739522428326,7.37544,2714.5,2714.0,3.6845]
[1739522429088,3.69142,2714.5,2714.0,3.6845]
[1739522429619,3.69142,2714.5,2714.0,7.36901]
[1739522429847,3.69142,2714.5,2714.0,7.36902]
[1739522430005,3.69142,2714.5,2714.0,3.6845]
[1739522430605,0.0075,2714.5,2714.0,3.6845]
[1739522430807,0.0075,2714.5,2714.1,4.02720684]
[1739522431030,0.0075,2714.5,2714.1,4.02726684]
[1739522431237,0.0075,2714.5,2714.1,7.71164684]
[1739522431435,0.0075,2714.5,2714.1,4.02720684]
[1739522432242,0.0075,2714.5,2714.2,0.34282684]
[1739522432807,3.69148,2714.5,2714.2,0.34282684]
[1739522433008,4.57790594,2714.5,2714.2,0.34282684]
[1739522433343,4.57790594,2714.5,2714.0,3.68459]
[1739522433578,0.0075,2714.5,2714.0,3.68459]
[1739522434542,0.0075,2714.5,2714.1,0.11806383]
[1739522434739,0.55,2714.4,2714.1,0.46106314]
[1739522434943,0.55,2714.4,2714.1,4.14549314]
[1739522435141,0.5575,2714.5,2714.1,4.14549314]
[1739522435515,0.5575,2714.5,2714.1,4.14544314]
[1739522436440,0.5575,2714.5,2714.2,0.34299931]
[1739522436636,0.5575,2714.5,2714.2,0.46097594]
[1739522437006,4.24145,2714.5,2714.2,0.46097594]